[Event "*** Titled Tuesday Blitz AM"]
[Site "Chess.com"]
[Date "2020.01.07"]
[Round "6"]
[White "Mr_Sinigami"]
[Black "DishonorOnYourCow"]
[Result "1-0"]
[WhiteElo "2547"]
[BlackElo "2241"]
[TimeControl "180+2"]
[EndTime "10:18:54 PST"]
[Termination "Mr_Sinigami won by resignation"]

1. c4 {[%clk 0:03:01.9]} 1... e5 {[%clk 0:02:57]} 2. Nc3 {[%clk 0:02:56.1]} 2...
Nc6 {[%clk 0:02:54.6]} 3. Nf3 {[%clk 0:02:57.1]} 3... Nf6 {[%clk 0:02:54]} 4. g3
{[%clk 0:02:58.1]} 4... Bb4 {[%clk 0:02:54]} 5. Bg2 {[%clk 0:02:58.9]} 5... d6
{[%clk 0:02:50.5]} 6. O-O {[%clk 0:02:59.1]} 6... a6 {[%clk 0:02:49.2]} 7. d3
{[%clk 0:02:59.5]} 7... Bg4 {[%clk 0:02:43.7]} 8. Nd5 {[%clk 0:02:50]} 8... Bc5
{[%clk 0:02:37]} 9. Bg5 {[%clk 0:02:40.7]} 9... h6 {[%clk 0:02:30.3]} 10. Bxf6
{[%clk 0:02:37.3]} 10... gxf6 {[%clk 0:02:29.9]} 11. b4 {[%clk 0:02:12]} 11...
Bd4 {[%clk 0:02:02.4]} 12. Rb1 {[%clk 0:02:07.1]} 12... f5 {[%clk 0:01:42.9]}
13. b5 {[%clk 0:01:55.1]} 13... axb5 {[%clk 0:01:41.4]} 14. cxb5 {[%clk
0:01:55.5]} 14... Ne7 {[%clk 0:01:28.7]} 15. Nf6+ {[%clk 0:01:52.2]} 15... Kf8
{[%clk 0:01:28.5]} 16. Nxd4 {[%clk 0:01:44.8]} 16... exd4 {[%clk 0:01:27.6]} 17.
Rb4 {[%clk 0:01:28.1]} 17... Rxa2 {[%clk 0:01:14.9]} 18. Nxg4 {[%clk 0:01:20.4]}
18... fxg4 {[%clk 0:01:15.3]} 19. Rxd4 {[%clk 0:01:21.9]} 19... Qd7 {[%clk
0:01:04]} 20. Qb3 {[%clk 0:01:13.4]} 20... Ra5 {[%clk 0:01:00.7]} 21. Rb1 {[%clk
0:01:02.9]} 21... b6 {[%clk 0:00:40.6]} 22. Rf4 {[%clk 0:01:02.9]} 22... Ng6
{[%clk 0:00:41.1]} 23. Bc6 {[%clk 0:01:02.8]} 23... Qe7 {[%clk 0:00:33.9]} 24.
Rxg4 {[%clk 0:01:02.5]} 24... Qxe2 {[%clk 0:00:28.4]} 25. Re4 {[%clk 0:00:53.9]}
25... Qa2 {[%clk 0:00:24.5]} 26. Qb4 {[%clk 0:00:31.2]} 26... Kg7 {[%clk
0:00:19.4]} 27. Rbe1 {[%clk 0:00:22.7]} 27... Rf8 {[%clk 0:00:16.9]} 28. Qd4+
{[%clk 0:00:22.1]} 28... Kh7 {[%clk 0:00:16.6]} 29. h4 {[%clk 0:00:19.1]} 29...
Qd2 {[%clk 0:00:12.9]} 30. R4e2 {[%clk 0:00:15]} 30... Ne5 {[%clk 0:00:06.8]}
31. Rxd2 {[%clk 0:00:14.7]} 31... Nf3+ {[%clk 0:00:07.8]} 32. Bxf3 {[%clk
0:00:15.1]} 1-0

[Event "*** Titled Tuesday Blitz AM"]
[Site "Chess.com"]
[Date "2020.01.07"]
[Round "6"]
[White "vlad10898"]
[Black "severomorskij"]
[Result "1/2-1/2"]
[WhiteElo "2722"]
[BlackElo "2884"]
[TimeControl "180+2"]
[EndTime "10:18:56 PST"]
[Termination "Game drawn by repetition"]

1. e4 {[%clk 0:03:01.9]} 1... c5 {[%clk 0:03:00.5]} 2. Nf3 {[%clk 0:03:02.8]}
2... Nc6 {[%clk 0:03:01.9]} 3. d4 {[%clk 0:03:04]} 3... cxd4 {[%clk 0:03:02.8]}
4. Nxd4 {[%clk 0:03:05.9]} 4... Nf6 {[%clk 0:03:04.2]} 5. Nc3 {[%clk 0:03:07.1]}
5... e5 {[%clk 0:03:05.5]} 6. Ndb5 {[%clk 0:03:08.4]} 6... d6 {[%clk 0:03:07.1]}
7. Bg5 {[%clk 0:03:09.5]} 7... a6 {[%clk 0:03:05.5]} 8. Na3 {[%clk 0:03:10.5]}
8... b5 {[%clk 0:03:06.6]} 9. Bxf6 {[%clk 0:03:11.4]} 9... gxf6 {[%clk
0:03:08.1]} 10. Nd5 {[%clk 0:03:13.1]} 10... f5 {[%clk 0:03:08.4]} 11. Bd3
{[%clk 0:03:10.4]} 11... Be6 {[%clk 0:03:08.6]} 12. O-O {[%clk 0:03:05.4]} 12...
Bxd5 {[%clk 0:03:08.6]} 13. exd5 {[%clk 0:03:07.1]} 13... Ne7 {[%clk 0:03:09.9]}
14. c3 {[%clk 0:03:01.9]} 14... e4 {[%clk 0:03:04.8]} 15. Bc2 {[%clk 0:02:39.8]}
15... Bg7 {[%clk 0:03:04.2]} 16. f3 {[%clk 0:02:21.8]} 16... b4 {[%clk 0:02:45]}
17. cxb4 {[%clk 0:02:21.5]} 17... Bxb2 {[%clk 0:02:45.3]} 18. Ba4+ {[%clk
0:02:23]} 18... Kf8 {[%clk 0:02:44]} 19. Nc4 {[%clk 0:02:24.5]} 19... Bxa1
{[%clk 0:02:42.3]} 20. Qxa1 {[%clk 0:02:26.4]} 20... Rg8 {[%clk 0:02:37.1]} 21.
fxe4 {[%clk 0:02:27.4]} 21... Rc8 {[%clk 0:02:30]} 22. Bb3 {[%clk 0:01:51.4]}
22... Ng6 {[%clk 0:01:48.9]} 23. exf5 {[%clk 0:01:35.3]} 23... Nh4 {[%clk
0:01:42.1]} 24. g3 {[%clk 0:01:36.5]} 24... Qg5 {[%clk 0:01:22.6]} 25. Qb1
{[%clk 0:00:35.3]} 25... Rxc4 {[%clk 0:00:30.6]} 26. Bxc4 {[%clk 0:00:36.2]}
26... Qe3+ {[%clk 0:00:23.3]} 27. Kh1 {[%clk 0:00:37.2]} 27... Qd2 {[%clk
0:00:16.8]} 28. Qe4 {[%clk 0:00:37.9]} 28... Rg4 {[%clk 0:00:17.4]} 29. Qe2
{[%clk 0:00:32.3]} 29... Qd4 {[%clk 0:00:10.5]} 30. Bb3 {[%clk 0:00:13.1]} 30...
Re4 {[%clk 0:00:10.8]} 31. Qh5 {[%clk 0:00:09.9]} 31... Qf2 {[%clk 0:00:10.9]}
32. Qh6+ {[%clk 0:00:04.8]} 32... Kg8 {[%clk 0:00:09.2]} 33. Qg5+ {[%clk
0:00:04.8]} 33... Kf8 {[%clk 0:00:09.9]} 34. Qh6+ {[%clk 0:00:06.3]} 34... Kg8
{[%clk 0:00:11.2]} 35. Qg5+ {[%clk 0:00:07.8]} 35... Kf8 {[%clk 0:00:12.6]} 36.
Qh6+ {[%clk 0:00:09.2]} 1/2-1/2

[Event "*** Titled Tuesday Blitz AM"]
[Site "Chess.com"]
[Date "2020.01.07"]
[Round "6"]
[White "Eliwood44"]
[Black "Blagorod"]
[Result "1-0"]
[WhiteElo "2334"]
[BlackElo "2110"]
[TimeControl "180+2"]
[EndTime "10:18:58 PST"]
[Termination "Eliwood44 won by resignation"]

1. d4 {[%clk 0:03:01.9]} 1... d5 {[%clk 0:03:00.8]} 2. c4 {[%clk 0:03:01.1]}
2... Nc6 {[%clk 0:03:01.3]} 3. e3 {[%clk 0:02:50.8]} 3... e5 {[%clk 0:03:01.9]}
4. dxe5 {[%clk 0:02:45.8]} 4... d4 {[%clk 0:03:02]} 5. exd4 {[%clk 0:02:45.6]}
5... Qxd4 {[%clk 0:03:02.5]} 6. Qxd4 {[%clk 0:02:40.7]} 6... Nxd4 {[%clk
0:03:03.5]} 7. Bd3 {[%clk 0:02:42.4]} 7... Be6 {[%clk 0:03:04]} 8. b3 {[%clk
0:02:36.5]} 8... O-O-O {[%clk 0:02:58.1]} 9. Bb2 {[%clk 0:02:26.4]} 9... Nxb3
{[%clk 0:02:48.1]} 10. axb3 {[%clk 0:02:25.8]} 10... Rxd3 {[%clk 0:02:46.2]} 11.
Nf3 {[%clk 0:02:23.4]} 11... Rxb3 {[%clk 0:02:37.2]} 12. Bd4 {[%clk 0:02:24.2]}
12... a6 {[%clk 0:01:57.5]} 13. Nbd2 {[%clk 0:02:24.3]} 13... Rb4 {[%clk
0:01:48.4]} 14. O-O {[%clk 0:02:20.2]} 14... Bxc4 {[%clk 0:01:21.4]} 15. Rfc1
{[%clk 0:01:52.6]} 15... Bd5 {[%clk 0:01:14.7]} 16. Bc3 {[%clk 0:01:49.9]} 16...
Rb6 {[%clk 0:01:09.2]} 17. Ba5 {[%clk 0:01:39.5]} 17... Rc6 {[%clk 0:01:07.7]}
18. Rxc6 {[%clk 0:01:40]} 18... Bxc6 {[%clk 0:01:08.2]} 19. Nd4 {[%clk
0:01:41.6]} 19... Bd5 {[%clk 0:01:03.5]} 20. Rc1 {[%clk 0:01:42.1]} 20... c6
{[%clk 0:01:04.1]} 21. Nf1 {[%clk 0:01:39.1]} 21... Ne7 {[%clk 0:00:52]} 22. Ne3
{[%clk 0:01:37.9]} 22... g6 {[%clk 0:00:49]} 23. f4 {[%clk 0:01:38.5]} 23... Bg7
{[%clk 0:00:40]} 24. Bb4 {[%clk 0:01:38.6]} 24... Kd7 {[%clk 0:00:40.4]} 25. g3
{[%clk 0:01:29.9]} 25... Rd8 {[%clk 0:00:33.3]} 26. Ba5 {[%clk 0:01:30.4]} 26...
Re8 {[%clk 0:00:28.3]} 27. Rb1 {[%clk 0:01:29.4]} 27... b5 {[%clk 0:00:25.9]}
28. Bb4 {[%clk 0:01:30.1]} 28... f6 {[%clk 0:00:17.7]} 29. Bxe7 {[%clk
0:01:29.4]} 29... Rxe7 {[%clk 0:00:16]} 30. Nxd5 {[%clk 0:01:29.5]} 30... cxd5
{[%clk 0:00:17.1]} 31. e6+ {[%clk 0:01:31.4]} 31... Kd6 {[%clk 0:00:16.9]} 32.
Ra1 {[%clk 0:01:32.8]} 32... Ra7 {[%clk 0:00:16.7]} 33. Nxb5+ {[%clk 0:01:33.3]}
33... axb5 {[%clk 0:00:16.3]} 34. Rxa7 {[%clk 0:01:35.2]} 34... Bf8 {[%clk
0:00:16.8]} 35. Rb7 {[%clk 0:01:25.8]} 35... Kxe6 {[%clk 0:00:17]} 36. Rxb5
{[%clk 0:01:26.9]} 36... f5 {[%clk 0:00:13.9]} 37. Kf2 {[%clk 0:01:26.1]} 37...
Bg7 {[%clk 0:00:09.4]} 38. Ke3 {[%clk 0:01:27.4]} 38... d4+ {[%clk 0:00:09.9]}
39. Kd3 {[%clk 0:01:28.5]} 39... Bf6 {[%clk 0:00:09.7]} 40. h3 {[%clk
0:01:29.6]} 40... h6 {[%clk 0:00:10]} 41. g4 {[%clk 0:01:28.8]} 41... fxg4
{[%clk 0:00:10.5]} 42. hxg4 {[%clk 0:01:29.9]} 42... h5 {[%clk 0:00:10.6]} 43.
gxh5 {[%clk 0:01:30.7]} 43... gxh5 {[%clk 0:00:10.1]} 44. Rxh5 {[%clk
0:01:32.6]} 44... Bg7 {[%clk 0:00:10]} 45. Rb5 {[%clk 0:01:33.9]} 45... Bf6
{[%clk 0:00:10.8]} 46. Ke4 {[%clk 0:01:35.2]} 46... Bg7 {[%clk 0:00:07.9]} 47.
Rb6+ {[%clk 0:01:36.2]} 47... Kf7 {[%clk 0:00:08.8]} 48. f5 {[%clk 0:01:35.5]}
48... Bf6 {[%clk 0:00:08.1]} 49. Rb7+ {[%clk 0:01:34.7]} 49... Kf8 {[%clk
0:00:07.7]} 50. Rd7 {[%clk 0:01:32.8]} 50... Kg8 {[%clk 0:00:07.5]} 51. Kd5
{[%clk 0:01:33.4]} 51... Kf8 {[%clk 0:00:05.6]} 52. Ke6 {[%clk 0:01:34.4]} 52...
Bg5 {[%clk 0:00:04.6]} 53. f6 {[%clk 0:01:34.4]} 1-0

[Event "*** Titled Tuesday Blitz AM"]
[Site "Chess.com"]
[Date "2020.01.07"]
[Round "6"]
[White "gmcorrales"]
[Black "Sanan_Sjugirov"]
[Result "1-0"]
[WhiteElo "2882"]
[BlackElo "2950"]
[TimeControl "180+2"]
[EndTime "10:18:59 PST"]
[Termination "gmcorrales won by resignation"]

1. e4 {[%clk 0:03:01.9]} 1... e6 {[%clk 0:03:00.2]} 2. d4 {[%clk 0:03:01.8]}
2... d5 {[%clk 0:03:01.2]} 3. e5 {[%clk 0:03:02.3]} 3... c5 {[%clk 0:03:01.6]}
4. c3 {[%clk 0:03:03.5]} 4... Nc6 {[%clk 0:03:01.1]} 5. Nf3 {[%clk 0:03:04.6]}
5... Qb6 {[%clk 0:03:01.4]} 6. a3 {[%clk 0:03:05.1]} 6... c4 {[%clk 0:02:58.8]}
7. Nbd2 {[%clk 0:03:04.9]} 7... Na5 {[%clk 0:02:59.8]} 8. Be2 {[%clk 0:03:06.2]}
8... Bd7 {[%clk 0:03:00.2]} 9. O-O {[%clk 0:03:07.8]} 9... Ne7 {[%clk
0:03:01.1]} 10. Qe1 {[%clk 0:03:05.6]} 10... Qc7 {[%clk 0:03:00]} 11. Bd1 {[%clk
0:03:06.5]} 11... Nc8 {[%clk 0:03:01.2]} 12. h4 {[%clk 0:03:04]} 12... Nb6
{[%clk 0:03:01.5]} 13. h5 {[%clk 0:03:03.5]} 13... O-O-O {[%clk 0:02:54.2]} 14.
Nh2 {[%clk 0:02:58.6]} 14... Ba4 {[%clk 0:02:51.4]} 15. Rb1 {[%clk 0:02:51.5]}
15... Kb8 {[%clk 0:02:36.7]} 16. g4 {[%clk 0:02:46]} 16... Be7 {[%clk
0:02:31.5]} 17. f4 {[%clk 0:02:45.5]} 17... Bxd1 {[%clk 0:02:31.6]} 18. Qxd1
{[%clk 0:02:46.4]} 18... Rdg8 {[%clk 0:01:59.3]} 19. Ndf3 {[%clk 0:02:47.2]}
19... Nb3 {[%clk 0:01:46.9]} 20. Be3 {[%clk 0:02:47.8]} 20... f6 {[%clk
0:01:45.5]} 21. Qe2 {[%clk 0:02:46.2]} 21... f5 {[%clk 0:01:38.1]} 22. gxf5
{[%clk 0:02:42.3]} 22... exf5 {[%clk 0:01:40]} 23. Kh1 {[%clk 0:02:27.9]} 23...
g6 {[%clk 0:01:40.9]} 24. Bf2 {[%clk 0:02:24.3]} 24... Nd7 {[%clk 0:01:41.4]}
25. Bh4 {[%clk 0:02:24.7]} 25... Nf8 {[%clk 0:01:41]} 26. Rg1 {[%clk 0:02:22.2]}
26... Ne6 {[%clk 0:01:40.8]} 27. Qe3 {[%clk 0:02:14.4]} 27... gxh5 {[%clk
0:01:35.8]} 28. Bf6 {[%clk 0:01:53.7]} 28... Rxg1+ {[%clk 0:01:28.4]} 29. Rxg1
{[%clk 0:01:55.6]} 29... Rf8 {[%clk 0:01:30]} 30. Ng5 {[%clk 0:01:51.6]} 30...
Qd7 {[%clk 0:01:16.7]} 31. Nxh7 {[%clk 0:01:50.4]} 31... Rd8 {[%clk 0:00:57.9]}
32. Rg6 {[%clk 0:01:40.8]} 32... a6 {[%clk 0:00:34.8]} 33. Ng5 {[%clk
0:01:38.4]} 33... Re8 {[%clk 0:00:22.3]} 34. Nhf3 {[%clk 0:01:22]} 34... Bf8
{[%clk 0:00:09.4]} 35. Nxe6 {[%clk 0:01:21.8]} 35... Qxe6 {[%clk 0:00:11.2]} 36.
Ng5 {[%clk 0:01:22.3]} 36... Qb6 {[%clk 0:00:12.4]} 37. e6 {[%clk 0:01:20.4]}
37... Na5 {[%clk 0:00:11.2]} 38. Qe2 {[%clk 0:01:16.6]} 38... Ka7 {[%clk
0:00:11]} 39. Rg8 {[%clk 0:01:14.6]} 39... Nc6 {[%clk 0:00:11.7]} 40. Nh7 {[%clk
0:01:03.9]} 40... Qc7 {[%clk 0:00:10.6]} 41. Rxf8 {[%clk 0:00:58.5]} 41... Rxf8
{[%clk 0:00:10.7]} 42. Nxf8 {[%clk 0:01:00.4]} 42... Qxf4 {[%clk 0:00:11.5]} 43.
e7 {[%clk 0:01:01]} 43... Nxe7 {[%clk 0:00:08.8]} 44. Bxe7 {[%clk 0:01:02.9]}
1-0

[Event "*** Titled Tuesday Blitz AM"]
[Site "Chess.com"]
[Date "2020.01.07"]
[Round "6"]
[White "dolynachess"]
[Black "Artem_Ilyin"]
[Result "0-1"]
[WhiteElo "2366"]
[BlackElo "2525"]
[TimeControl "180+2"]
[EndTime "10:19:04 PST"]
[Termination "Artem_Ilyin won on time"]

1. d4 {[%clk 0:01:53.9]} 1... Nf6 {[%clk 0:02:59]} 2. c4 {[%clk 0:01:54.6]} 2...
e6 {[%clk 0:02:58]} 3. g3 {[%clk 0:01:54.9]} 3... d5 {[%clk 0:02:54]} 4. Bg2
{[%clk 0:01:54.7]} 4... Be7 {[%clk 0:02:52.1]} 5. Nf3 {[%clk 0:01:55.8]} 5...
O-O {[%clk 0:02:52.3]} 6. O-O {[%clk 0:01:57.7]} 6... dxc4 {[%clk 0:02:53]} 7.
Ne5 {[%clk 0:01:57.7]} 7... c5 {[%clk 0:02:52.6]} 8. dxc5 {[%clk 0:01:56.1]}
8... Qc7 {[%clk 0:02:53.1]} 9. Nxc4 {[%clk 0:01:55.4]} 9... Qxc5 {[%clk
0:02:53.4]} 10. Qb3 {[%clk 0:01:51.6]} 10... Nc6 {[%clk 0:02:51.4]} 11. Be3
{[%clk 0:01:52.4]} 11... Qh5 {[%clk 0:02:51.3]} 12. f3 {[%clk 0:01:29.5]} 12...
e5 {[%clk 0:02:47.8]} 13. Nbd2 {[%clk 0:01:15.7]} 13... Nd4 {[%clk 0:02:44.9]}
14. Bxd4 {[%clk 0:00:31.4]} 14... exd4 {[%clk 0:02:46.8]} 15. Rad1 {[%clk
0:00:22.9]} 15... Rb8 {[%clk 0:02:36.4]} 16. e4 {[%clk 0:00:21.6]} 16... dxe3
{[%clk 0:02:32]} 17. Nxe3 {[%clk 0:00:22.9]} 17... Be6 {[%clk 0:02:31.6]} 18.
Qa4 {[%clk 0:00:21.1]} 18... Bc5 {[%clk 0:02:31.1]} 19. Rfe1 {[%clk 0:00:22.3]}
19... Nd5 {[%clk 0:02:30.7]} 20. Nf1 {[%clk 0:00:21.2]} 20... Rfe8 {[%clk
0:02:28.7]} 21. Kh1 {[%clk 0:00:19.9]} 21... Nb4 {[%clk 0:01:58.8]} 22. a3
{[%clk 0:00:17.9]} 22... b5 {[%clk 0:01:43.8]} 23. Qa5 {[%clk 0:00:11.1]} 23...
Nc6 {[%clk 0:01:44.5]} 24. Qd2 {[%clk 0:00:10.2]} 24... Nd4 {[%clk 0:01:40.5]}
25. Qf2 {[%clk 0:00:06]} 25... Rbd8 {[%clk 0:01:37]} 26. g4 {[%clk 0:00:06.2]}
26... Qg6 {[%clk 0:01:31.9]} 27. Qg3 {[%clk 0:00:07.6]} 27... h5 {[%clk
0:01:29.8]} 28. h3 {[%clk 0:00:08]} 28... Bb3 {[%clk 0:01:20.5]} 29. Rc1 {[%clk
0:00:07.7]} 29... Bd6 {[%clk 0:01:18.4]} 30. f4 {[%clk 0:00:06.3]} 30... hxg4
{[%clk 0:00:52.7]} 31. Nxg4 {[%clk 0:00:08.2]} 31... Be6 {[%clk 0:00:43.9]} 32.
Ne5 {[%clk 0:00:08]} 32... Qh6 {[%clk 0:00:34.7]} 33. Nh2 {[%clk 0:00:06.3]}
33... Nf5 {[%clk 0:00:31.4]} 34. Qf2 {[%clk 0:00:04.7]} 34... Nh4 {[%clk
0:00:30.1]} 35. Nhg4 {[%clk 0:00:05.2]} 35... Qh5 {[%clk 0:00:30.3]} 36. Rcd1
{[%clk 0:00:04.4]} 36... Nxg2 {[%clk 0:00:25.8]} 37. Qxg2 {[%clk 0:00:05.5]}
37... Bxe5 {[%clk 0:00:22.5]} 0-1

[Event "*** Titled Tuesday Blitz AM"]
[Site "Chess.com"]
[Date "2020.01.07"]
[Round "6"]
[White "Alopekos"]
[Black "Hydrargyrum_Girl"]
[Result "0-1"]
[WhiteElo "2461"]
[BlackElo "2216"]
[TimeControl "180+2"]
[EndTime "10:19:05 PST"]
[Termination "Hydrargyrum_Girl won by resignation"]

1. d4 {[%clk 0:03:00.6]} 1... Nf6 {[%clk 0:02:57.3]} 2. c4 {[%clk 0:03:01.8]}
2... g6 {[%clk 0:02:57.7]} 3. Nc3 {[%clk 0:03:01.9]} 3... Bg7 {[%clk 0:02:58.7]}
4. e4 {[%clk 0:03:03.4]} 4... d6 {[%clk 0:02:59.1]} 5. Nf3 {[%clk 0:03:04.6]}
5... O-O {[%clk 0:03:00.3]} 6. Be2 {[%clk 0:03:05.2]} 6... e5 {[%clk 0:02:55.4]}
7. O-O {[%clk 0:03:05.3]} 7... exd4 {[%clk 0:02:52]} 8. Nxd4 {[%clk 0:03:05.6]}
8... Nc6 {[%clk 0:02:51.8]} 9. Nxc6 {[%clk 0:02:52]} 9... bxc6 {[%clk
0:02:53.7]} 10. Bg5 {[%clk 0:02:48.5]} 10... Re8 {[%clk 0:02:48.6]} 11. f3
{[%clk 0:02:41.5]} 11... Rb8 {[%clk 0:02:39.4]} 12. Qd2 {[%clk 0:02:40.3]} 12...
Ba6 {[%clk 0:02:30.9]} 13. Rac1 {[%clk 0:02:33.4]} 13... Qd7 {[%clk 0:02:21.3]}
14. Rfd1 {[%clk 0:02:17.7]} 14... Qe6 {[%clk 0:02:15]} 15. b3 {[%clk 0:02:15.1]}
15... d5 {[%clk 0:02:05]} 16. cxd5 {[%clk 0:02:06.5]} 16... cxd5 {[%clk
0:02:05.7]} 17. Bxa6 {[%clk 0:01:58]} 17... Qxa6 {[%clk 0:02:05.7]} 18. Nxd5
{[%clk 0:01:56.2]} 18... Nxd5 {[%clk 0:02:02.4]} 19. exd5 {[%clk 0:01:49.8]}
19... Re2 {[%clk 0:01:44.6]} 20. Qd3 {[%clk 0:01:32.2]} 20... Qxa2 {[%clk
0:01:40.7]} 21. Rd2 {[%clk 0:01:26.7]} 21... Rxd2 {[%clk 0:01:22.6]} 22. Qxd2
{[%clk 0:01:26.3]} 22... Qxb3 {[%clk 0:01:08.6]} 23. Rxc7 {[%clk 0:01:06.5]}
23... Qb6+ {[%clk 0:01:04]} 24. Kf1 {[%clk 0:00:53.3]} 24... Qxc7 {[%clk
0:01:01.3]} 25. Qe3 {[%clk 0:00:31]} 25... Qc4+ {[%clk 0:00:39.9]} 26. Ke1
{[%clk 0:00:20.8]} 26... Rb1+ {[%clk 0:00:36]} 27. Kd2 {[%clk 0:00:21.5]} 27...
Rb2+ {[%clk 0:00:23.5]} 28. Ke1 {[%clk 0:00:21.8]} 28... Rb1+ {[%clk 0:00:13.7]}
29. Kd2 {[%clk 0:00:21.4]} 29... Qc1+ {[%clk 0:00:12.8]} 30. Kd3 {[%clk
0:00:21]} 30... Rb3+ {[%clk 0:00:10.1]} 31. Ke4 {[%clk 0:00:19.7]} 31... Rxe3+
{[%clk 0:00:10.9]} 32. Bxe3 {[%clk 0:00:21.3]} 32... f5+ {[%clk 0:00:11.6]} 33.
Kf4 {[%clk 0:00:20.5]} 33... Bh6+ {[%clk 0:00:12.9]} 34. Kg3 {[%clk 0:00:18.8]}
34... Qxe3 {[%clk 0:00:13.9]} 0-1

[Event "*** Titled Tuesday Blitz AM"]
[Site "Chess.com"]
[Date "2020.01.07"]
[Round "6"]
[White "NewBornNow"]
[Black "BIG_Pirate"]
[Result "1-0"]
[WhiteElo "2674"]
[BlackElo "2407"]
[TimeControl "180+2"]
[EndTime "10:19:09 PST"]
[Termination "NewBornNow won by checkmate"]

1. e4 {[%clk 0:03:01.9]} 1... d5 {[%clk 0:03:00.3]} 2. exd5 {[%clk 0:03:02.1]}
2... Qxd5 {[%clk 0:03:02.2]} 3. Nc3 {[%clk 0:03:03.2]} 3... Qa5 {[%clk
0:03:03.2]} 4. d4 {[%clk 0:03:04.3]} 4... Nf6 {[%clk 0:03:02.4]} 5. Bc4 {[%clk
0:03:02.3]} 5... Nc6 {[%clk 0:03:03.1]} 6. d5 {[%clk 0:03:01.8]} 6... Nb4 {[%clk
0:03:03.7]} 7. Nge2 {[%clk 0:02:58.6]} 7... Bg4 {[%clk 0:03:01.1]} 8. h3 {[%clk
0:02:54.7]} 8... Bxe2 {[%clk 0:02:56.4]} 9. Qxe2 {[%clk 0:02:55.2]} 9... Nbxd5
{[%clk 0:02:56.9]} 10. O-O {[%clk 0:02:55.6]} 10... Nxc3 {[%clk 0:02:56.3]} 11.
bxc3 {[%clk 0:02:55.7]} 11... e6 {[%clk 0:02:57.4]} 12. Rb1 {[%clk 0:02:55.4]}
12... O-O-O {[%clk 0:02:40.7]} 13. Rb5 {[%clk 0:02:53.7]} 13... Qxc3 {[%clk
0:02:40.8]} 14. Be3 {[%clk 0:02:50.2]} 14... b6 {[%clk 0:02:15.4]} 15. Qf3
{[%clk 0:02:49.2]} 15... Kb8 {[%clk 0:02:08.9]} 16. Bd3 {[%clk 0:02:41.1]} 16...
Rd5 {[%clk 0:01:56]} 17. Rb3 {[%clk 0:02:40.3]} 17... Qe5 {[%clk 0:01:52.3]} 18.
Rfb1 {[%clk 0:02:36.1]} 18... Bd6 {[%clk 0:01:52.4]} 19. g3 {[%clk 0:02:36.5]}
19... Qh5 {[%clk 0:01:49.3]} 20. g4 {[%clk 0:02:29]} 20... Qe5 {[%clk 0:01:49]}
21. c4 {[%clk 0:02:19.8]} 21... Ra5 {[%clk 0:01:19.1]} 22. Rb5 {[%clk
0:02:19.2]} 22... Rxb5 {[%clk 0:01:17]} 23. Rxb5 {[%clk 0:02:18.3]} 23... Qc3
{[%clk 0:00:48.3]} 24. Rb3 {[%clk 0:02:16.2]} 24... Qa1+ {[%clk 0:00:45.1]} 25.
Rb1 {[%clk 0:02:13.6]} 25... Qe5 {[%clk 0:00:45.8]} 26. a4 {[%clk 0:01:45.6]}
26... h5 {[%clk 0:00:37]} 27. g5 {[%clk 0:01:45.2]} 27... Nd7 {[%clk 0:00:37.6]}
28. a5 {[%clk 0:01:41.8]} 28... Nc5 {[%clk 0:00:32.9]} 29. Bxc5 {[%clk
0:01:27.4]} 29... Bxc5 {[%clk 0:00:27.9]} 30. a6 {[%clk 0:01:26.3]} 30... c6
{[%clk 0:00:14.4]} 31. h4 {[%clk 0:01:25]} 31... Kc7 {[%clk 0:00:12.9]} 32.
Qxf7+ {[%clk 0:01:24.6]} 32... Kd6 {[%clk 0:00:10.7]} 33. Qf3 {[%clk 0:01:16.8]}
33... Bd4 {[%clk 0:00:09.2]} 34. c5+ {[%clk 0:01:15.3]} 34... Kxc5 {[%clk
0:00:07.9]} 35. Rc1+ {[%clk 0:01:15.4]} 35... Bc3 {[%clk 0:00:07.5]} 36. Be4
{[%clk 0:01:14.4]} 36... Kb4 {[%clk 0:00:08.5]} 37. Bxc6 {[%clk 0:01:14.8]}
37... Rd8 {[%clk 0:00:08.2]} 38. Rb1+ {[%clk 0:01:14.9]} 38... Ka3 {[%clk
0:00:06.5]} 39. Bb5 {[%clk 0:00:58.4]} 39... Rd2 {[%clk 0:00:06.3]} 40. Bc4
{[%clk 0:00:58.8]} 40... Ka4 {[%clk 0:00:05.8]} 41. Qc6+ {[%clk 0:00:55.2]}
41... b5 {[%clk 0:00:06.2]} 42. Bxb5+ {[%clk 0:00:46.2]} 42... Ka3 {[%clk
0:00:06.7]} 43. Qc4 {[%clk 0:00:45.2]} 43... Rb2 {[%clk 0:00:02.6]} 44. Qa4#
{[%clk 0:00:44.7]} 1-0